Cogmind - Beta 12 @@@ ROGUE MODE // 2023.03.03 @ 11:20:44 Player: Dendrocnid Result: Destroyed by as-81322 with Assembled Blade Performance ------------- Evolutions (0) 0 Regions Visited (2) 400 Robots Destroyed (13) 65 Value Destroyed (364) 364 Prototype IDs (0) 0 Alien Tech Used (0) 0 Bonus (0) 0 TOTAL SCORE: 829 Bonus ------- None Cogmind --------- Core Integrity 0/250 Matter 238/300 Energy 100/100 System Corruption 1% Temperature Hot (276) Movement Rolling (105) Ox1 Location -10/Mines Parts ------- > --- POWER (1) -------- (None) > --- PROPULSION (2) --- Armored Wheel Armored Wheel > --- UTILITY (2) ------ Large Storage Unit Improved Light Armor Plating > --- WEAPON (2) ------- Light Assault Rifle Bore Cannon > --- INVENTORY (15) --- Ion Engine Light Treads Light Treads Wheel Armored Wheel Improved Heat Sink EM Pulse Gun Particle Gun Grenade Launcher Datajack Enhanced Flamer Peak State ------------ > --- POWER ------------ Light Nuclear Core > --- PROPULSION ------- Armored Wheel Armored Wheel > --- UTILITY ---------- Large Storage Unit Improved Light Armor Plating > --- WEAPON ----------- Particle Gun Bore Cannon > --- INVENTORY -------- Ion Engine Light Treads Light Treads Wheel Armored Wheel Improved Heat Sink EM Pulse Gun Light Assault Rifle Grenade Launcher Datajack Enhanced Flamer [Rating: 19] Favorites ----------- Power Light Nuclear Core Engine Ion Engine Power Core Light Nuclear Core Propulsion Armored Wheel Wheel Armored Wheel Utility Small Storage Unit Storage Small Storage Unit Protection Light Armor Plating Weapon Medium Laser Energy Gun Medium Laser Ballistic Gun Light Assault Rifle Ballistic Cannon Bore Cannon Launcher Grenade Launcher Build | -11 -10 -10 ------- Run | Jun Mat Min Slots Evolved . | . . . Power . | . . . Propulsion . | . . . Utility . | . . . Weapon . | . . . Parts Attached 19 | 6 8 5 Power 3 | 1 2 . Engine 2 | 1 1 . Core 1 | . 1 . Reactor . | . . . Propulsion 5 | 2 3 . Treads . | . . . Leg . | . . . Wheel 5 | 2 3 . Hover . | . . . Flight . | . . . Utility 4 | 1 2 1 Device . | . . . Storage 2 | 1 1 . Processor . | . . . Hackware . | . . . Protection 2 | . 1 1 Artifact . | . . . Weapon 7 | 2 1 4 Energy Gun 2 | 1 . 1 Energy Cannon . | . . . Ballistic Gun 3 | 1 1 1 Ballistic Cannon 1 | . . 1 Launcher 1 | . . 1 Special Weapon . | . . . Impact Weapon . | . . . Slashing Weapon . | . . . Piercing Weapon . | . . . Special Melee Weapon . | . . . Unidentified Prototypes . | . . . Parts Lost 3 | . 2 1 Power 1 | . . 1 Propulsion 1 | . 1 . Utility . | . . . Weapon 1 | . 1 . Highest Loss Streak 2 | . 2 1 To Critical Strikes . | . . . Average Slot Usage (%) 86 | . 82 100 Engine 5 | . 7 . Core 8 | . 6 14 Wheel 28 | . 28 28 Storage 14 | . 14 14 Protection 4 | . 1 14 Energy Gun 13 | . 14 13 Ballistic Gun 9 | . 9 7 Launcher 1 | . . 5 Naked Turns . | . . . Heaviest Build 40 | 13 31 40 Greatest Support 32 | 32 32 24 Greatest Overweight (x) 1 | . 1 1 Average Overweight (x) . | . . 1 Largest Inventory Capacity 15 | 8 15 15 Average Capacity 9 | 7 8 15 Most Carried 11 | 7 8 11 Average Carried 7 | 4 7 9 Final Capacity 15 | 8 15 15 Final Carried 11 | 6 8 11 Class Distribution -------------------- 100% | Mutant Dominant Class ---------------- Mutant | -10/Materials Mutant | -10/Mines Resources | -11 -10 -10 ----------- Run | Jun Mat Min Matter Collected 436 | 206 124 106 Remotely . | . . . Salvage Created 472 | . 334 138 Parts 24 | . 19 5 Haulers Intercepted . | . . . Recyclers Shooed . | . . . Parts Field Recycled . | . . . Retrieved Matter . | . . . Parts Self-Destructed . | . . . Prevented . | . . . Kills | -11 -10 -10 ------- Run | Jun Mat Min Combat Hostiles Destroyed 17 | . 9 8 Guns 13 | . 9 4 AOE 4 | . . 4 Classes Destroyed 5 | . 4 1 Tunneler 1 | . 1 . Operator 1 | . 1 . Swarmer 3 | . 3 . Grunt 8 | . 6 2 Assembled 6 | . . 6 Best Kill Streak 6 | . 5 6 Combat Bots Only 6 | . 5 6 Max Kills in Single Turn 4 | . 2 4 Gunslinging 1 | . 1 . Exploded 4 | . . 4 Melee . | . . . Uniques/NPCs Destroyed . | . . . Combat | -11 -10 -10 -------- Run | Jun Mat Min Damage Taken 1004 | . 499 505 Core 277 | . 149 128 Absorbed by Shields . | . . . Core Remaining (%) 100 | 100 . . Volleys Fired 52 | . 34 18 Largest 2 | . 2 2 Hottest 122 | . 70 122 Shots Fired 97 | . 64 33 Gun 86 | . 64 22 Cannon 9 | . . 9 Launcher 2 | . . 2 Special . | . . . Kinetic 49 | . 30 19 Thermal 46 | . 34 12 Explosive 2 | . . 2 Electromagnetic . | . . . Robot Hit Streak 10 | . 10 10 Robot Miss Streak 8 | . 4 8 Penetration Max . | . . . Secondary Targets 3 | . 2 1 Max Gunslinging Chain 1 | . 1 1 Shots Hit Robots 56 | . 42 14 Core Hits 36 | . 21 15 Critical Kills . | . . . Critical Parts Destroyed 1 | . . 1 Critical Strikes 5 | . 3 2 Burn 4 | . 3 1 Destroy 1 | . . 1 Melee Attacks . | . . . Impact . | . . . Slashing . | . . . Piercing . | . . . Sneak Attacks . | . . . Combat Hostiles . | . . . Follow-up Attacks . | . . . Damage Inflicted 836 | . 459 377 Guns 595 | . 459 136 Cannons 51 | . . 51 Explosions 190 | . . 190 Melee . | . . . Ramming . | . . . Kinetic 242 | . 149 93 Thermal 404 | . 310 94 Explosive 190 | . . 190 Electromagnetic . | . . . Impact . | . . . Slashing . | . . . Piercing . | . . . Highest Corruption 1 | . 1 1 Average Corruption 1 | . 1 1 Corruption Purged . | . . . Corruption Blocked . | . . . Effects 2 | . 1 1 Heat Flow Errors 1 | . 1 . Alerts 1 | . . 1 Overload Shots . | . . . Overflow Damage . | . . . Projectiles . | . . . Explosions . | . . . Melee . | . . . Knockbacks 1 | . . 1 Impact . | . . . Kinetic 1 | . . 1 Secondary . | . . . Self-Inflicted Damage 34 | . . 34 Shots 1 | . . 1 Rammed . | . . . Targets Rammed . | . . . Kicked . | . . . Crushed . | . . . Highest Temperature 360 | . 353 360 Average Temperature 140 | . 122 179 Received Heat Transfer 336 | . 246 90 Effects 2 | . 1 1 Shutdowns 1 | . . 1 Damage (minor) 1 | . 1 . Siege Activations . | . . . Robots Corrupted . | . . . Combat Hostiles . | . . . Parts Fried . | . . . Impact Corruptions . | . . . Robots Melted . | . . . Combat Hostiles . | . . . Parts Melted 5 | . 4 1 Heat Transferred 1480 | . 1147 333 Parts Sabotaged . | . . . Parts Stolen . | . . . Parts Stripped . | . . . Power Chain Reactions . | . . . Missiles Intercepted . | . . . Alert | -11 -10 -10 ------- Run | Jun Mat Min Peak Influence 235 | . 235 105 Initial 19 | . . 19 Average 86 | . 98 84 Maximum Alert Level 1 | . 1 . Low Security (%) 86 | 100 79 100 Level 1 13 | . 20 . Level 2 . | . . . Level 3 . | . . . Level 4 . | . . . Level 5 . | . . . High Security . | . . . Max Security . | . . . Squads Dispatched . | . . . Investigation . | . . . Extermination . | . . . Reinforcement . | . . . Assault . | . . . Garrison . | . . . Intercept . | . . . Searches Triggered . | . . . Construction Impeded . | . . . Haulers Reinforced . | . . . Active Scanning Responses . | . . . Cargo Convoy Interrupts . | . . . Stealth | -11 -10 -10 --------- Run | Jun Mat Min Distress Signals . | . . . Communications Jammed . | . . . Distress Signals . | . . . Times Spotted 26 | . 13 13 Peak Tracking Total 5 | . 5 5 Tactical Retreats 1 | . . 1 Traps | -11 -10 -10 ------- Run | Jun Mat Min Traps Triggered 1 | . 1 . Indirectly . | . . . Trap Hack Attempts . | . . . Triggered . | . . . Disarmed . | . . . Reprogrammed . | . . . Reused . | . . . Traps Extracted . | . . . Installed . | . . . Triggered . | . . . Machines | -11 -10 -10 ---------- Run | Jun Mat Min Machines Disabled . | . . . Max in Single Turn . | . . . Machines Repaired . | . . . Machines Sabotaged . | . . . Overloaded Fab Kills . | . . . Hacking | -11 -10 -10 --------- Run | Jun Mat Min Machines Accessed 1 | . 1 . Terminals 1 | . 1 . Fabricators . | . . . Repair Stations . | . . . Recycling Units . | . . . Scanalyzers . | . . . Garrison Access . | . . . Total Hacks 2 | . 2 . Successful 2 | . 2 . Failed . | . . . Catastrophic . | . . . Database Lockouts . | . . . Manual 1 | . 1 . Terminals 2 | . 2 . Fabricators . | . . . Repair Stations . | . . . Recycling Units . | . . . Scanalyzers . | . . . Garrison Access . | . . . Terminal Hacks 1 | . 1 . Zone Layout 1 | . 1 . Fabricator Hacks . | . . . Repair Station Hacks . | . . . Recycling Unit Hacks . | . . . Scanalyzer . | . . . Garrison Access Hacks . | . . . Unauthorized Hacks 1 | . 1 . Terminals 1 | . 1 . Botnet 1 | . 1 . Fabricators . | . . . Repair Stations . | . . . Recycling Units . | . . . Scanalyzers . | . . . Garrison Access . | . . . Data Cores Recovered 1 | . 1 . Used 1 | . 1 . Hacking Detections 1 | . 1 . Full Trace Events . | . . . Feedback Events . | . . . Feedback Blocked . | . . . Robot Schematics Acquired . | . . . Robots Built . | . . . Authchips . | . . . Time . | . . . Total Robot Build Rating . | . . . Part Schematics Acquired . | . . . Parts Built . | . . . Authchips . | . . . Time . | . . . Total Part Build Rating . | . . . Parts Repaired . | . . . Time . | . . . Parts Recycled . | . . . Recycled Matter . | . . . Retrieved Matter . | . . . Retrieved Components . | . . . Parts Scanalyzed . | . . . Part Schematics Acquired . | . . . Parts Damaged . | . . . Bothacking | -11 -10 -10 ------------ Run | Jun Mat Min Used RIF Installer . | . . . Robots Hacked . | . . . Non-combat . | . . . Combat . | . . . Robot Hacks Applied . | . . . Relay Couplers Released . | . . . Fabnet Peak Effective % . | . . . Robots Rewired . | . . . Allies Hacked . | . . . Hacks Repelled . | . . . Allies | -11 -10 -10 -------- Run | Jun Mat Min Total Allies . | . . . Largest Group . | . . . Highest-Rated Group . | . . . Highest-Rated Ally . | . . . Total Orders . | . . . Ally Attacks . | . . . Total Damage . | . . . Kills . | . . . Allies Corrupted . | . . . Allies Melted . | . . . Intel | -11 -10 -10 ------- Run | Jun Mat Min Robot Analysis Total . | . . . Derelict Logs Recovered . | . . . Drone Launches . | . . . Drone Recoveries . | . . . Exploration | -11 -10 -10 ------------- Run | Jun Mat Min Turns Passed 697 | 60 471 166 Spaces Moved 498 | 46 368 84 Core 2 | 2 . . Treads . | . . . Legs . | . . . Wheels 496 | 44 368 84 Hover . | . . . Flight . | . . . Fastest Speed 50 | 50 90 105 Average Speed 94 | 97 91 105 Slowest Speed 105 | 100 105 105 Overloaded Moves . | . . . Propulsion Burnouts . | . . . Robots Hopped . | . . . Cave-ins Triggered . | . . . Exploration Rate (%) 29 | 4 56 28 Regions Visited 2 Branch Regions 1 Pre-discovered Areas . | . . . Known Exits Taken . | . . . Unknown Exits Taken 2 | 1 1 . Scrap Searched . | . . . Spaces Dug . | . . . Terrain Destroyed 28 | . . 28 Melee . | . . . Projectile 10 | . . 10 AOE 18 | . . 18 Terrain Rammed . | . . . Walls Destroyed . | . . . Machines Disabled . | . . . Actions | -11 -10 -10 --------- Run | Jun Mat Min Total 633 | 58 446 129 Wait 40 | . 23 17 Move 496 | 45 367 84 Hop . | . . . Pick Up 16 | 7 6 3 Fast Attach 7 | 5 2 . Attach 2 | 1 1 . Detach . | . . . Swap 10 | . 5 5 Drop 10 | . 8 2 Fire 52 | . 34 18 Melee . | . . . Ram . | . . . Kick . | . . . Crush . | . . . Escape Stasis . | . . . Rewire . | . . . Trap . | . . . Miscellaneous . | . . . Route ------- -11/Junkyard -10/Materials (discovered 3 exits: [*Mat x2] / [*Min]) -10/Mines (discovered 1 exit: [*Mat]) History --------- Turn | Location | Event 9 | -11/Junkyard | Discovered new exit (range 15) 61 | -11/Junkyard | Entered Materials 170 | -10/Materials | Discovered new exit (range 10) 325 | -10/Materials | Discovered new exit (range 6) 326 | -10/Materials | Build established: Mutant 362 | -10/Materials | Core integrity fell below 50% 441 | -10/Materials | Discovered new exit (range 12) 532 | -10/Materials | Entered Mines 577 | -10/Mines | A weapon hastily lodged in a ceiling crevice suddenly fell to the ground 599 | -10/Mines | Assembled infested the area 604 | -10/Mines | Assisted by a Guerilla fighting off Assembled 624 | -10/Mines | Discovered new exit (range 7) 683 | -10/Mines | Core integrity fell below 20% 698 | -10/Mines | Destroyed by as-81322 with Assembled Blade Last Messages --------------- 00680_ U-05 Engineer lays Concrete. 00680_ Acquired 3 matter. 00681_ U-05 Engineer builds a Wall. 00681_ Acquired 2 matter. 00683_ The unstable cave ceiling collapses. 00684_ U-05 Engineer lays Concrete. 00684_ HV Slug penetrates Wall. 00686_ U-05 Engineer lays Concrete. 00687_ U-05 Engineer builds a Wall. 00688_ The unstable cave ceiling collapses. 00688_ U-05 Engineer lays Concrete. 00688_ R-06 Scavenger collects Shock Absorption System. 00689_ U-05 Engineer builds a Wall. 00692_ Acquired 13 matter. 00693_ The unstable cave ceiling collapses. 00693_ HV Slug penetrates Wall. 00693_ HV Slug penetrates Earth. 00693_ U-05 Engineer lays Concrete. 00694_ U-05 Engineer builds a Wall. 00694_ Lgt. Nuclear Core destroyed. Map ----- +----------------------------------------------------+ | ???? ??????????????????????????????????????????? | | ???? ??????????????????????????????????????????? | | ???? ???????????????????????????????????????????? | | ???? ???????????????????????????????????????????? | | ???? #???????????????????????????????????????????? | | #### ##??????????????????????????????????????????? | | ## ???????????????????????????????????????????? | | ## #????????????????????????????????????????????? | | ## #????????????????????????????????????????????? | | #####????????????????????????????????????????? | | ## ## ##???????????????????????????????????????? | | # ##??????????????????????????????????????? | | ###????????????????????????????????????? | | ##???????????????????????????????????? | | # #???????????????????????????????????? | | ### #???????????????????????????????????? | | #?## ##???????????????????????????????????? | | #??## ######????????????????????????????????????? | | ????# #?????????????????????????????????????????? | | ????# #?????????????????????????????????????????? | | ????# #?????????????????????????????????????????? | | ????# #??????????????????#######??? ??????????? | | ????# #???????????????###; ;;;#;!%##???????????? | | ????# #??????????????## % a% ;#???????????? | | ????# #?????????###### a $ #????????????? | | ????# #???####### # @ #????????????????? | | ????# ##### # % # % ; #?????????????? | | ????# ##### ! %!t u ;; #####?????????????? | | ????# !%% !] ## # # ## #####?????????????????? | | ????# #### ### ## ### #?????????????????????? | | # ##### ##?#####?##?? #?????????????????????? | | ###???????????? #?????????????????????? | | """ #????????????? ?????????????????????? | | """ #????????????? ?????????????????????? | | """ #????????????? ????????????????????? | | ## ##????????????? ????????????????????? | | #?### ##?????????????? ????????????????????? | | ##?????####???????????????? #???????????????????? | | ??????????????????????????? ????????????????????? | | ??????????????????????????? ????????????????????? | | ??????????????????????????? ?????????????????????? | | ?????????????????????????????????????????????????? | | ?????????????????????????????????????????????????? | | ?????????????????????????????????????????????????? | | ?????????????????????????????????????????????????? | | ?????????????????????????????????????????????????? | | ?????????????????????????????????????????????????? | | ?????????????????????????????????????????????????? | | ?????????????????????????????????????????????????? | | ?????????????????????????????????????????????????? | +----------------------------------------------------+ Best States ------------- Heat Dissipation 25 Energy Generation 14 Energy Capacity 250 Matter Stores 300 Matter Capacity 300 Sight Range 16 Terrain Scan Density 10 Armor Coverage 150 Evasion (%) 42 Item Schematics ----------------- None Robot Schematics ------------------ None Fabricated ------------ Nothing Alien Tech Used ----------------- None Achievements -------------- None Challenges ------------ None Game ------ Seed CloakCorruptionWand Manual? 0 Play Time 00:11:00 Cumulative 120.0 hours Start 2023.03.03 @ 11:11:54 End 2023.03.03 @ 11:20:44 Sessions 1 Manual Loads 0 Difficulty Rogue Special Mode None Game No. 194 Rogue 194 Adventurer 0 Explorer 0 Win Type - Total 0 Types 0/0/0/0/0/0/0/0/0 Lore% 28 Gallery% 50 Achievement% 42 Wizard Run 0 Options --------- ASCII 0 Keyboard 0 Movement Mouse Keybinds 0 Fullscreen 1 Font 18/SmallcapsGlow Map View 76x50 Tactical HUD 1 Map Filters NONE Filters NONE Steam 1 RUN: 9a762151-a25e-4cfa-b332-4ac6ec99fec7